bitfinex-derivatives/quotes_ETHF0:USTF0_20250531
["timestamp","ask_amount","ask_price","bid_price","bid_amount"]
[1748664116657,0.79651,2510.0,2509.9,3.8887]
[1748664117357,0.79651,2510.0,2509.9,3.2078]
[1748664118252,2.72099,2510.1,2509.9,4.00434]
[1748664118453,3.2078,2510.5,2509.9,3.2078]
[1748664118652,3.2078,2510.5,2510.4,0.79638]
[1748664119054,4.51403142,2510.5,2510.4,0.79638]
[1748664121053,1.30623142,2510.5,2510.4,9.00418]
[1748664121259,0.00596801,2511.1,2511.0,0.79619]
[1748664121863,0.00596801,2511.1,2510.9,0.7962]
[1748664122160,0.00596801,2511.1,2511.0,0.79619]
[1748664122361,0.00596801,2511.1,2510.9,1.345]
[1748664122561,0.00596801,2511.1,2511.0,0.79619]
[1748664122763,0.00596801,2511.1,2510.9,2.14121]
[1748664122966,0.80215801,2511.1,2510.9,1.345]
[1748664123461,0.80215801,2511.1,2510.7,4.524]
[1748664123462,0.00596801,2511.1,2510.7,4.524]
[1748664123664,0.79632,2510.6,2510.4,3.2078]
[1748664123863,0.79638,2510.4,2510.3,2.0027]
[1748664124070,0.6693,2510.9,2510.3,1.345]
[1748664124261,0.79638,2510.5,2510.3,1.345]
[1748664124464,0.79636,2510.5,2510.3,1.345]
[1748664124763,4.9057742,2510.8,2510.2,0.79644]
[1748664124971,0.79638,2510.5,2510.2,0.79644]
[1748664125161,6.8964442,2510.8,2510.2,1.3721]
[1748664125373,3.2078,2510.6,2510.0,4.113]
[1748664125568,0.79651,2510.0,2509.8,4.5799]
[1748664125869,3.91471,2510.5,2509.8,4.5799]
[1748664125870,0.79649,2510.1,2509.8,5.37645]
[1748664126585,0.79649,2510.1,2509.9,0.79654]
[1748664126883,0.79649,2510.1,2509.8,5.37645]
[1748664127072,0.79649,2510.1,2509.9,0.79654]
[1748664127273,0.79649,2510.1,2509.8,5.37646]
[1748664127684,0.79649,2510.1,2509.9,0.79654]
[1748664127878,0.1992,2510.0,2509.9,0.79654]
[1748664128380,0.1992,2510.0,2509.8,5.37647]
[1748664128876,0.59047617,2509.9,2509.8,3.2078]
[1748664129483,0.59047617,2509.9,2509.8,5.33287]
[1748664129984,0.59047617,2509.9,2509.8,4.5363]
[1748664130182,1.38701617,2509.9,2509.8,4.5363]
[1748664130383,0.59047617,2509.9,2509.8,4.5363]
[1748664130584,0.59047617,2509.9,2509.8,5.33287]
[1748664131469,1.38701617,2509.9,2509.8,3.2078]
[1748664131676,1.38701617,2509.9,2509.6,0.79661]
[1748664131677,5.11267617,2509.9,2509.4,0.6477]
[1748664131877,5.11267617,2509.9,2508.9,3.2078]
[1748664131878,0.79683,2509.0,2508.9,3.2078]
[1748664132075,3.2078,2509.5,2508.5,5.1995]
[1748664132076,0.79689,2508.8,2508.5,5.1995]
[1748664132282,0.7969,2508.8,2508.5,5.99648]
[1748664132486,0.79688,2508.9,2508.6,0.79695]
[1748664132678,5.1439,2509.1,2508.5,5.99646]
[1748664132876,4.00461,2509.1,2508.5,5.1995]
[1748664133077,0.59047617,2508.8,2508.7,0.79692]
[1748664133275,0.59047617,2508.8,2508.7,13.11372]
[1748664133874,0.00596801,2509.2,2509.1,0.79679]
[1748664134074,0.00596801,2509.2,2509.1,8.11359]
[1748664134380,0.00596801,2509.2,2509.1,13.11359]
[1748664135281,3.2078,2509.8,2509.1,12.3168]
[1748664135484,3.2078,2509.8,2509.2,1.979]
[1748664135687,4.00437,2509.8,2509.5,0.79665]
[1748664135886,4.00437,2509.8,2509.6,1.3154]
[1748664136287,0.79663,2509.6,2509.4,0.80264801]
[1748664136589,0.79663,2509.6,2509.4,0.00596801]
[1748664136783,0.79663,2509.6,2509.4,1.26746801]
[1748664136985,0.79664,2509.6,2509.4,1.26746801]
[1748664137189,1.3357,2509.7,2509.5,0.79663]
[1748664137984,0.79657,2509.8,2509.5,0.79663]
[1748664138291,0.79654,2509.9,2509.6,0.79661]
[1748664138692,0.79656,2509.8,2509.5,0.79663]
[1748664138883,0.79656,2509.8,2509.5,2.05813]
[1748664139792,0.79655,2509.9,2509.6,0.79662]
[1748664140092,0.79659,2509.7,2509.5,2.05813]
[1748664140282,0.79659,2509.7,2509.5,1.2615]
[1748664140488,1.27619,2509.7,2509.5,2.05815]
[1748664140887,1.27619,2509.7,2509.5,1.2615]
[1748664141086,0.79662,2509.6,2509.5,1.2615]
[1748664141391,1.2762,2509.7,2509.5,1.2615]
[1748664141588,0.79664,2509.6,2509.4,0.00596801]
[1748664142186,0.79665,2509.5,2509.4,0.00596801]
[1748664142786,2.05365,2509.5,2509.4,0.00596801]
[1748664143492,1.257,2509.5,2509.4,0.80265801]
[1748664143693,3.8774,2509.6,2509.5,0.79665]
[1748664143694,3.2078,2509.6,2509.5,0.79665]
[1748664143901,1.2762,2509.7,2509.4,0.80262801]
[1748664144192,0.79662,2509.6,2509.4,0.80262801]
[1748664144392,0.79665,2509.5,2509.4,1.32106801]
[1748664144791,0.79665,2509.5,2509.4,0.00596801]
[1748664144990,2.09285,2509.5,2509.4,0.00596801]
[1748664145190,3.44355,2509.5,2509.4,0.00596801]
[1748664147789,0.4796,2509.7,2509.4,0.00596801]
[1748664148202,0.4796,2509.7,2509.6,0.79662]
[1748664149895,0.4796,2509.7,2509.6,2.05552]
[1748664150594,0.4796,2509.7,2509.6,1.2589]
[1748664150803,0.4796,2509.7,2509.6,2.05552]
[1748664151997,0.6788,2509.7,2509.6,2.05552]
[1748664152799,0.6788,2509.7,2509.6,1.2589]
[1748664153199,1.47539,2509.7,2509.5,4.11]
[1748664153401,2.0448,2509.7,2509.5,4.90665]
[1748664154200,2.84139,2509.7,2509.5,4.90665]
[1748664154401,0.05453757,2509.6,2509.5,4.90665]
[1748664155091,0.05453757,2509.6,2509.5,6.24495]
[1748664156193,0.05453757,2509.6,2509.5,11.24495]
[1748664158406,0.05453757,2509.6,2509.5,7.13495]
[1748664158705,0.05453757,2509.6,2509.5,11.24195]
[1748664159111,0.05453757,2509.6,2509.5,6.24195]
[1748664160698,0.05453757,2509.6,2509.5,11.24195]
[1748664161702,0.05453757,2509.6,2509.5,6.24195]
[1748664163211,0.05453757,2509.6,2509.5,11.24195]
[1748664164817,0.00596801,2510.0,2509.9,0.79653]
[1748664165011,0.66,2510.4,2509.9,0.79653]
[1748664165012,4.4894,2510.6,2509.9,7.3148]
[1748664165315,2.76226,2510.5,2510.3,0.7964]
[1748664165812,1.9659,2510.5,2510.3,0.7964]
[1748664167210,2.76224,2510.5,2510.2,0.79641]
[1748664167615,2.76224,2510.5,2510.3,0.7964]
[1748664167815,0.1991,2510.4,2510.3,0.7964]
[1748664168021,1.4384,2510.4,2510.3,0.7964]
[1748664168812,0.1991,2510.4,2510.3,4.9034]
[1748664169514,0.1991,2510.4,2510.3,6.205]
[1748664171507,0.1991,2510.4,2510.3,4.107]
[1748664172108,0.1991,2510.4,2510.3,4.9034]
[1748664174314,0.25363756,2510.4,2510.3,4.9034]
[1748664175710,1.05000756,2510.4,2510.2,3.2078]
[1748664176015,0.79645,2510.2,2510.0,4.90249]
[1748664176208,2.77069756,2510.1,2510.0,4.106]
[1748664176410,0.79653,2509.9,2509.8,3.2078]
[1748664177309,0.85106756,2509.9,2509.8,3.2078]
[1748664177509,0.05453756,2509.9,2509.8,3.2078]
[1748664177710,1.31283756,2509.9,2509.8,4.00436]
[1748664177911,1.31283756,2509.9,2509.8,3.2078]
[1748664178616,2.10936756,2509.9,2509.7,4.106]
[1748664178814,0.6753,2509.8,2509.7,4.106]
[1748664179014,1.9357,2509.8,2509.7,4.106]
[1748664179316,1.9357,2509.8,2509.5,3.2078]
[1748664179317,1.99023756,2509.8,2509.5,3.2078]
[1748664179518,0.79661,2509.7,2509.5,3.2078]
[1748664179713,1.2604,2509.6,2509.5,4.00445]
[1748664180408,1.31493756,2509.6,2509.5,3.2078]
[1748664180615,7.11155756,2509.6,2509.5,3.2078]
[1748664180809,0.79665,2509.5,2509.4,0.00596801]
[1748664181010,2.74015,2509.5,2509.4,0.00596801]
[1748664181209,7.74015,2509.5,2509.4,0.00596801]
[1748664181414,7.79468756,2509.5,2509.4,0.00596801]
[1748664181817,1.99803756,2509.5,2509.4,0.00596801]
[1748664182017,2.05599391,2509.5,2509.4,0.80265801]
[1748664182211,1.37289391,2509.5,2509.4,0.80265801]
[1748664182517,0.05453756,2509.5,2509.4,0.80265801]
[1748664183220,0.05453756,2509.5,2509.4,2.12245801]
[1748664183916,2.3288,2509.8,2509.7,0.79659]
[1748664184118,2.3288,2509.8,2509.7,4.90359]
[1748664184312,0.1611,2509.8,2509.7,4.90359]
[1748664184509,0.1611,2509.8,2509.7,6.85679]
[1748664184913,0.1611,2509.8,2509.7,6.0602]
[1748664185112,0.1611,2509.8,2509.7,6.85679]
[1748664185313,0.1611,2509.8,2509.7,4.90359]
[1748664185919,1.879,2510.0,2509.7,4.107]
[1748664186219,1.879,2510.0,2509.8,0.79654]
[1748664186613,2.67551,2510.0,2509.7,4.107]
[1748664186815,0.79653,2509.9,2509.7,4.107]
[1748664187020,1.243,2509.8,2509.7,4.107]
[1748664187215,0.636,2510.0,2509.9,0.79653]
[1748664187519,0.79657,2509.8,2509.7,4.107]
[1748664187722,2.05966,2509.9,2509.7,4.107]
[1748664187925,0.79659,2509.7,2509.6,3.2078]
[1748664188114,0.79659,2509.7,2509.4,4.90964801]
[1748664188421,1.2631,2509.6,2509.4,4.90964801]
[1748664189122,1.2631,2509.6,2509.4,4.11296801]
[1748664189823,1.2631,2509.6,2509.5,0.79665]
[1748664190923,1.31763756,2509.6,2509.5,0.79665]
[1748664192020,1.31763756,2509.6,2509.4,4.90962801]
[1748664192220,1.31763756,2509.6,2509.5,0.79665]
[1748664192620,1.31763756,2509.6,2509.4,4.11296801]
[1748664192819,1.31763756,2509.6,2509.4,4.90964801]
[1748664193021,0.05453756,2509.5,2509.4,4.90964801]
[1748664199526,0.25373756,2509.5,2509.4,4.90964801]
[1748664200234,0.25373756,2509.5,2509.4,4.11296801]
[1748664200623,1.62083756,2509.5,2509.4,4.11296801]
[1748664200822,2.41748756,2509.5,2509.4,4.11296801]
[1748664201024,2.41748756,2509.5,2509.4,0.00596801]
[1748664201326,7.41748756,2509.5,2509.4,0.00596801]
[1748664201921,9.41410897,2509.5,2509.4,0.00596801]
[1748664202323,9.41410897,2509.5,2509.4,0.80265801]
[1748664202324,3.61745897,2509.5,2509.4,0.80265801]
[1748664202832,4.41410897,2509.5,2509.4,0.00596801]
[1748664203433,3.61745897,2509.5,2509.4,0.80265801]
[1748664203626,1.57345897,2509.5,2509.4,4.90665801]
[1748664204928,0.25373756,2509.5,2509.4,4.90665801]
[1748664205526,0.25373756,2509.5,2509.4,0.80265801]
[1748664205727,0.25373756,2509.5,2509.4,4.90665801]
[1748664206428,0.25373756,2509.5,2509.4,9.90665801]
[1748664207135,0.25373756,2509.5,2509.4,4.90665801]
[1748664208228,0.1992,2509.5,2509.4,4.90665801]
[1748664208440,0.30827512,2509.5,2509.4,9.90665801]
[1748664209837,0.30827512,2509.5,2509.4,5.52695801]
[1748664210731,0.30827512,2509.5,2509.4,4.73026801]
[1748664210938,0.30827512,2509.5,2509.4,5.52695801]
[1748664211434,0.30827512,2509.5,2509.4,4.10996801]
[1748664211841,2.44672512,2509.5,2509.4,4.10996801]
[1748664212538,2.44672512,2509.5,2509.4,0.00596801]
[1748664212739,2.97173452,2509.5,2509.4,0.00596801]
[1748664213133,2.97173452,2509.5,2509.4,0.80265801]
[1748664213435,1.65007512,2509.5,2509.4,0.80265801]
[1748664214941,0.30827512,2509.5,2509.4,0.80265801]
[1748664217940,0.30827512,2509.5,2509.4,0.00596801]
[1748664218143,1.10492512,2509.5,2509.4,0.00596801]
[1748664218443,2.34322512,2509.5,2509.4,0.00596801]
[1748664219339,3.6651577,2509.5,2509.4,0.00596801]
[1748664221640,7.8685077,2509.5,2508.9,3.2078]
[1748664221844,0.79676,2509.2,2508.9,3.2078]
[1748664222146,1.86365526,2509.1,2509.0,0.79681]
[1748664222443,1.97273038,2509.1,2509.0,0.79681]
[1748664222844,2.02726794,2509.1,2509.0,0.79681]
[1748664223845,2.22646794,2509.1,2509.0,0.79681]
[1748664224343,3.02324794,2509.1,2508.9,3.2078]
[1748664224546,2.22646794,2509.1,2508.9,4.00464]
[1748664224845,0.16361268,2509.0,2508.9,4.00464]
[1748664225745,0.16361268,2509.0,2508.9,0.79684]
[1748664225941,0.16361268,2509.0,2508.9,4.00464]
[1748664226841,0.16361268,2509.0,2508.9,5.34544]
[1748664227344,0.16361268,2509.0,2508.9,4.5486]
[1748664227849,0.96042268,2509.0,2508.9,3.2078]
[1748664228050,2.20622268,2509.0,2508.9,3.2078]
[1748664229758,0.79684,2508.9,2508.8,0.00596801]
[1748664229938,1.60615268,2508.9,2508.8,0.00596801]
[1748664230642,2.94556057,2508.9,2508.8,0.00596801]
[1748664231745,1.60615268,2508.9,2508.8,0.00596801]
[1748664231942,0.80931268,2508.9,2508.8,0.00596801]
[1748664232744,0.16361268,2508.9,2508.8,0.80283801]
[1748664233139,0.16361268,2508.9,2508.8,0.00596801]
[1748664233641,0.16361268,2508.9,2508.8,0.80283801]
[1748664234044,0.16361268,2508.9,2508.8,0.00596801]
[1748664235542,0.96045268,2508.9,2508.8,0.00596801]
[1748664235752,0.16361268,2508.9,2508.8,0.00596801]
[1748664236143,0.96045268,2508.9,2508.8,0.00596801]
[1748664236649,0.16361268,2508.9,2508.8,0.00596801]
[1748664236947,0.16361268,2508.9,2508.8,0.80283801]
[1748664237552,0.16361268,2508.9,2508.8,0.00596801]
[1748664238046,0.96045268,2508.9,2508.8,0.00596801]
[1748664238552,0.16361268,2508.9,2508.8,0.00596801]
[1748664239352,0.16361268,2508.9,2508.8,0.80283801]
[1748664239748,0.16361268,2508.9,2508.8,0.00596801]
[1748664240149,0.16361268,2508.9,2508.8,1.35176801]
[1748664240350,0.96045268,2508.9,2508.8,1.35176801]
[1748664240551,0.96045268,2508.9,2508.8,0.00596801]
[1748664240851,2.30015223,2508.9,2508.8,0.00596801]
[1748664241048,6.50331223,2508.9,2508.1,6.743]
[1748664241351,0.79702,2508.4,2508.1,6.89858]
[1748664241556,3.2078,2508.5,2508.1,6.1015]
[1748664241750,3.2078,2508.5,2508.4,0.797]
[1748664242058,0.16361268,2508.5,2508.4,0.797]
[1748664243957,3.2078,2509.0,2508.4,5.0]
[1748664244157,3.2078,2509.0,2508.8,0.79685]
[1748664244453,3.2078,2509.0,2508.9,6.25134]
[1748664245662,0.3597,2509.1,2509.0,0.79681]
[1748664245865,1.9084,2509.1,2509.0,2.06471]
[1748664246154,3.2078,2509.8,2509.0,2.06471]
[1748664246155,0.6644,2509.7,2509.0,6.9302]
[1748664246359,4.5594,2509.8,2509.2,5.19967]
[1748664246360,3.2078,2509.8,2509.2,5.19967]
[1748664246561,2.81248,2510.1,2509.7,0.79659]
[1748664246757,0.79665,2509.6,2509.3,4.102]
[1748664247060,3.2078,2509.5,2509.4,4.102]
[1748664247461,3.2078,2509.6,2509.4,4.89868]
[1748664247649,0.00598027,2509.7,2509.6,0.79662]
[1748664247849,2.35915661,2510.2,2510.0,0.79649]
[1748664248160,2.35915661,2510.2,2509.8,4.102]
[1748664248361,2.35915661,2510.2,2509.9,1.2679]
[1748664248661,3.2078,2510.1,2509.9,1.9128]
[1748664249057,3.2078,2510.1,2509.9,2.70932]
[1748664249257,3.2078,2510.1,2509.9,1.9128]
[1748664249659,5.1161,2510.1,2509.8,4.102]
[1748664250258,0.79652,2509.9,2509.8,4.102]
[1748664250461,0.6532,2510.0,2509.8,4.102]
[1748664250665,2.08462,2509.9,2509.8,4.102]
[1748664251063,1.2881,2509.9,2509.5,4.098]
[1748664251263,3.2078,2509.6,2509.5,4.098]
[1748664251856,3.2078,2509.6,2509.3,1.9956]
[1748664251857,4.00442,2509.6,2509.4,4.098]
[1748664252363,0.79665,2509.5,2509.4,4.098]
[1748664252666,1.9837,2509.5,2509.2,0.00598027]
[1748664252965,0.6367,2509.5,2509.3,4.8947]
[1748664253265,0.6367,2509.5,2509.3,6.1933]
[1748664253564,0.6367,2509.5,2509.2,0.00598027]
[1748664253762,1.9837,2509.5,2509.2,4.10398027]
[1748664253964,2.78036,2509.5,2509.2,5.40258027]
[1748664254366,1.9837,2509.5,2509.2,5.40258027]
[1748664254565,2.78035,2509.5,2509.2,6.19931027]
[1748664255064,0.79671,2509.3,2509.2,0.00598027]
[1748664255461,0.6856,2509.4,2509.2,0.00598027]
[1748664255661,2.17031,2509.3,2509.2,0.00598027]
[1748664261366,1.3736,2509.3,2509.2,0.80273027]
[1748664261566,0.6367,2509.5,2509.4,0.79668]
[1748664261871,1.43335,2509.5,2509.3,1.291]
[1748664262060,0.79668,2509.4,2509.3,1.291]
[1748664262265,0.79671,2509.3,2509.2,0.00598027]
[1748664262460,1.8829,2509.5,2509.2,0.00598027]
[1748664262865,0.79671,2509.3,2509.2,0.00598027]
[1748664264468,2.14274124,2509.3,2509.2,0.00598027]
[1748664264870,5.35054124,2509.3,2509.2,0.00598027]
[1748664265266,0.7969,2508.7,2508.6,4.098]
[1748664265764,0.79696,2508.6,2508.4,4.00478]
[1748664265972,1.9379,2508.6,2508.4,4.00478]
[1748664266172,0.79697,2508.5,2508.4,3.2078]
[1748664266563,2.08927,2508.5,2508.4,3.2078]
[1748664266875,0.797,2508.4,2508.2,1.45323027]
[1748664267176,1.2897,2508.4,2508.3,0.79703]
[1748664267672,0.6456,2508.6,2508.4,0.79699]
[1748664268065,1.44254,2508.6,2508.3,2.09302]
[1748664268368,0.6456,2508.6,2508.3,1.296]
[1748664268576,4.01069027,2508.7,2508.4,0.79699]
[1748664268775,0.00598027,2508.7,2508.5,1.296]
[1748664268972,0.00598027,2508.7,2508.6,0.6298]
[1748664269975,0.80288027,2508.7,2508.5,5.394]
[1748664270172,0.00598027,2508.7,2508.5,6.19096]
[1748664270474,0.00598027,2508.7,2508.5,1.296]
[1748664270675,0.00598027,2508.7,2508.6,0.79694]
[1748664271870,0.00598027,2508.7,2508.5,1.296]
[1748664272079,0.00598027,2508.7,2508.6,0.79694]
[1748664272973,0.00598027,2508.7,2508.5,2.09295]
[1748664273173,0.00598027,2508.7,2508.5,1.296]
[1748664273378,0.00598027,2508.7,2508.5,2.09296]
[1748664274169,0.00598027,2508.7,2508.6,0.79694]
[1748664275377,0.00598027,2508.7,2508.5,2.09295]
[1748664275578,0.00598027,2508.7,2508.6,0.79694]
[1748664277772,0.9964,2509.0,2508.9,0.79684]
[1748664277977,0.9964,2509.0,2508.9,4.89584]
[1748664278273,3.407,2509.4,2508.9,4.89584]
[1748664278274,3.407,2509.4,2508.9,4.099]
[1748664278473,4.20369,2509.4,2509.1,0.79676]
[1748664278671,3.407,2509.4,2509.2,1.3117]
[1748664278872,3.407,2509.4,2508.7,1.2941]
[1748664279071,0.00598027,2509.5,2509.4,0.79668]
[1748664279376,0.00598027,2509.5,2509.4,13.10248]
[1748664279572,0.00598027,2509.5,2509.4,4.89468]
[1748664279778,0.00598027,2509.5,2509.4,8.10248]
[1748664279970,0.00598027,2509.5,2509.4,4.89468]
[1748664280776,0.00598027,2509.5,2509.4,8.10248]
[1748664283680,0.00598027,2509.5,2509.4,4.00448]
[1748664285080,0.00598027,2509.5,2509.4,3.2078]
[1748664285280,1.36208027,2509.5,2509.4,3.2078]
[1748664285674,0.00598027,2509.5,2509.4,4.00448]
[1748664287179,0.1992,2509.6,2509.5,0.79665]
[1748664287480,0.1992,2509.6,2509.5,2.06425]
[1748664287783,0.1992,2509.6,2509.5,7.06425]
[1748664290082,0.1992,2509.6,2509.5,2.06425]
[1748664290283,0.1992,2509.6,2509.5,6.15925]
[1748664291475,0.1992,2509.6,2509.5,5.3626]
[1748664291785,0.1992,2509.6,2509.5,6.15925]
[1748664292683,0.1992,2509.6,2509.5,4.89165]
[1748664293586,0.1992,2509.6,2509.5,6.18385]
[1748664295290,0.1992,2509.6,2509.5,4.095]
[1748664295494,0.1992,2509.6,2509.5,4.89165]
[1748664297086,0.1992,2509.6,2509.5,6.21325]
[1748664298994,0.1992,2509.6,2509.5,8.09945]
[1748664300284,0.1992,2509.6,2509.5,7.3028]
[1748664300491,0.1992,2509.6,2509.2,3.2078]
[1748664300689,1.899,2509.5,2509.2,3.2078]
[1748664300890,0.79671,2509.3,2509.2,3.2078]
[1748664301294,0.79683,2509.0,2508.8,3.2078]
[1748664301494,1.2743,2508.9,2508.8,3.2078]
[1748664301701,2.73504,2508.9,2508.8,3.2078]
[1748664301896,1.9382,2508.9,2508.7,4.89089]
[1748664302098,0.6726,2508.8,2508.7,4.89089]
[1748664302298,1.9469,2508.8,2508.7,4.094]
[1748664302798,1.9469,2508.8,2508.4,7.3028]
[1748664303102,1.9469,2508.8,2508.7,0.7969]
[1748664303303,1.9469,2508.8,2508.7,4.0047]
[1748664304200,3.2078,2509.3,2509.2,0.79674]
[1748664304403,2.7188,2509.5,2509.4,0.79668]
[1748664304700,2.7188,2509.5,2509.3,0.79669]
[1748664304901,2.7188,2509.5,2509.4,0.79668]
[1748664305297,5.56695661,2509.9,2509.6,0.79659]
[1748664305497,2.37028027,2509.8,2509.6,0.79659]
[1748664305692,2.37028027,2509.8,2509.5,0.79663]
[1748664305897,1.34913507,2509.7,2509.6,0.79661]
[1748664306300,1.34913507,2509.7,2509.4,2.0252]
[1748664306501,1.37428027,2509.8,2509.6,0.7966]
[1748664306703,0.00598027,2509.8,2509.7,0.79659]
[1748664306898,0.20518027,2509.8,2509.7,0.79659]
[1748664307203,0.20518027,2509.8,2509.7,2.11659]
[1748664307902,0.20518027,2509.8,2509.6,8.0994]
[1748664308303,1.28,2509.7,2509.6,3.2078]
[1748664309601,1.28,2509.7,2509.6,4.00442]
[1748664309801,0.20518027,2509.8,2509.7,0.79659]
[1748664312608,0.20518027,2509.8,2509.6,4.5637]
[1748664312609,0.20518027,2509.8,2509.6,3.2078]
[1748664312806,1.2557,2509.7,2509.5,0.00598027]
[1748664313012,0.79662,2509.6,2509.5,0.00598027]
[1748664313406,7.14612872,2509.6,2509.5,0.00598027]
[1748664313603,7.60520872,2509.6,2509.0,7.3008]
[1748664313801,2.60520872,2509.6,2509.0,7.3008]
[1748664314005,0.79674,2509.3,2509.0,7.3008]
[1748664314206,3.38756,2509.2,2509.0,7.3008]
[1748664314407,2.5908,2509.2,2509.0,7.3008]
[1748664314710,3.38755,2509.2,2509.0,7.3008]
[1748664314910,2.5908,2509.2,2509.0,8.09761]
[1748664315114,3.38756,2509.2,2509.0,7.3008]
[1748664315306,2.5908,2509.2,2509.0,7.3008]
[1748664315501,2.5908,2509.2,2509.0,3.2078]
[1748664315502,0.79678,2509.1,2509.0,3.2078]
[1748664315707,2.05578,2509.1,2509.0,3.2078]
[1748664315908,0.79684,2508.9,2508.8,0.00598027]
[1748664316509,0.79683,2509.0,2508.8,0.00598027]
[1748664316815,1.259,2508.9,2508.8,0.00598027]
[1748664317116,1.259,2508.9,2508.8,0.80285027]
[1748664317318,1.3351,2509.2,2508.8,4.09898027]
[1748664317519,1.3351,2509.2,2508.8,6.08008027]
[1748664317718,1.3351,2509.2,2509.1,0.79678]
[1748664318916,1.3351,2509.2,2509.0,3.2078]
[1748664319115,1.3351,2509.2,2509.0,4.00459]
[1748664319317,1.3351,2509.2,2509.0,3.2078]
[1748664319510,1.3351,2509.2,2508.8,6.08008027]
[1748664319707,1.2822,2509.1,2509.0,0.7968]
[1748664320410,1.2822,2509.1,2508.9,0.79683]
[1748664320612,1.2822,2509.1,2508.8,0.80284027]
[1748664321012,1.2822,2509.1,2508.8,0.00598027]
[1748664321210,2.079,2509.1,2508.8,0.00598027]
[1748664322511,0.79681,2509.0,2508.8,0.00598027]
[1748664322712,2.12854,2508.9,2508.8,0.00598027]
[1748664323114,1.3317,2508.9,2508.8,0.00598027]
[1748664323520,2.12854,2508.9,2508.8,0.00598027]
[1748664324020,1.3317,2508.9,2508.8,0.00598027]
[1748664324220,1.5309,2508.9,2508.8,0.00598027]
[1748664324924,1.5309,2508.9,2508.8,0.80285027]
[1748664325124,0.1992,2508.9,2508.8,0.80285027]
[1748664325324,0.1992,2508.9,2508.8,2.10685027]
[1748664328030,0.1992,2508.9,2508.8,0.00598027]
[1748664328426,2.28034,2508.9,2508.8,0.00598027]
[1748664328624,1.4835,2508.9,2508.8,0.00598027]
[1748664328827,1.4835,2508.9,2508.8,0.80285027]
[1748664329130,2.28034,2508.9,2508.8,0.00598027]
[1748664329531,1.4835,2508.9,2508.8,0.00598027]
[1748664330529,1.4835,2508.9,2508.8,0.80285027]
[1748664331334,1.4835,2508.9,2508.8,0.00598027]
[1748664331828,1.4835,2508.9,2508.8,0.80285027]
[1748664332029,0.1992,2508.9,2508.8,0.80285027]
[1748664332332,0.1992,2508.9,2508.8,2.08745027]
[1748664334734,0.1992,2508.9,2508.8,7.08745027]
[1748664335037,0.9963,2509.1,2509.0,0.79681]
[1748664335232,0.9963,2509.1,2509.0,8.09861]
[1748664335441,0.9963,2509.1,2509.0,13.09861]
[1748664335736,0.9963,2509.1,2509.0,14.41481]
[1748664336530,0.00598027,2509.8,2509.7,0.79659]
[1748664336837,0.00598027,2509.8,2509.7,8.09839]
[1748664352447,2.58728027,2509.8,2509.7,8.09839]
[1748664352648,2.58728027,2509.8,2509.7,7.3018]
[1748664352844,2.58728027,2509.8,2509.7,8.09839]
[1748664353246,0.00598027,2509.8,2509.7,8.09839]
[1748664353847,1.94668027,2509.8,2509.7,8.09839]
[1748664354446,2.58858027,2509.8,2509.7,8.09839]
[1748664354951,2.58858027,2509.8,2509.7,7.3018]
[1748664355355,3.38513027,2509.8,2509.7,3.2078]
[1748664355545,0.79663,2509.6,2509.4,4.091]
[1748664355745,1.3073,2509.5,2509.4,4.091]
[1748664355947,1.3073,2509.5,2509.4,4.88768]
[1748664356249,1.3073,2509.5,2509.4,4.091]
[1748664356853,2.10395,2509.5,2509.4,4.091]
[1748664357053,0.79668,2509.4,2509.3,3.2078]
[1748664357254,1.3073,2509.4,2509.0,3.2078]
[1748664357456,0.79678,2509.1,2509.0,3.2078]
[1748664357653,1.3339,2509.3,2508.8,4.09698027]
[1748664357854,1.3073,2509.0,2508.8,4.09698027]
[1748664358053,0.79684,2508.9,2508.8,4.09698027]
[1748664358356,2.10413,2509.0,2508.8,4.09698027]
[1748664358556,1.5065,2509.0,2508.8,0.00598027]
[1748664358753,2.30333,2509.0,2508.8,0.00598027]
[1748664358951,0.79684,2508.9,2508.8,0.00598027]
[1748664359156,2.04064,2508.9,2508.8,0.00598027]
[1748664360160,7.04064,2508.9,2508.8,0.00598027]
[1748664361166,2.04064,2508.9,2508.8,0.00598027]
[1748664361364,7.04064,2508.9,2508.8,0.00598027]
[1748664361869,1.2438,2508.9,2508.8,0.80285027]
[1748664362364,1.2438,2508.9,2508.8,0.00598027]
[1748664362365,2.04064,2508.9,2508.8,0.00598027]
[1748664362757,1.2438,2508.9,2508.8,0.00598027]
[1748664362956,2.04064,2508.9,2508.8,0.00598027]
[1748664365665,7.04064,2508.9,2508.8,0.00598027]
[1748664366260,1.2438,2508.9,2508.8,0.00598027]
[1748664366464,10.24844,2508.9,2508.8,0.00598027]
[1748664367766,2.04064,2508.9,2508.8,0.00598027]
[1748664368165,1.2438,2508.9,2508.8,0.80285027]
[1748664368461,0.79684,2508.9,2508.8,0.00598027]
[1748664368766,2.04454,2508.9,2508.8,0.00598027]
[1748664369263,10.25234,2508.9,2508.8,0.00598027]
[1748664370159,3.40810879,2508.9,2508.8,0.00598027]
[1748664370965,2.04454,2508.9,2508.8,0.00598027]
[1748664371860,2.24374,2508.9,2508.8,0.00598027]
[1748664374072,0.79697,2508.5,2508.4,3.2078]
[1748664374664,3.2078,2508.6,2508.1,1.3459]
[1748664374864,1.367,2508.4,2508.1,2.14299]
[1748664375159,1.367,2508.4,2508.1,1.3459]
[1748664375366,0.00598027,2508.5,2508.4,0.797]
[1748664375770,0.00598027,2508.5,2508.4,2.1055]
[1748664376668,0.00598027,2508.5,2508.4,6.1945]
[1748664382070,0.99606,2508.9,2508.8,0.79687]
[1748664382071,0.1992,2508.9,2508.8,0.79687]
[1748664382472,0.1992,2508.9,2508.8,4.88587]
[1748664382672,0.1992,2508.9,2508.8,7.53667]
[1748664383276,0.00598027,2509.1,2509.0,0.79681]
[1748664383471,0.00598027,2509.1,2509.0,4.00461]